Workbook

Sheet Hinweise
A1: Geschäftsgang 15
A3: Voraussetzungen
A4: Um den Geschäftsgang buchen zu können müssen Sie Kenntnisse über die folgenden Lehrninhalte haben:
A5: Buchungen auf Bestandskonten, Buchungen auf Erfolgskonten, Bestandsveränderungen, Abschreibungen, Umsatzsteuer, Buchung von Bezugskosten, Buchung von Nachlässen und Erlösberichtigungen, Kontenabschluss im Hauptbuch, Der Geschäftsgang umfasst 20 Geschäftsvorfälle + Abschlussbuchungen
E7: Für den Kontenabschluss müssen Sie Grundkenntnisse in der Tabellenkalkulation haben!
A13: Buchen im Grundbuch
A14: 1. Wählen Sie die Tabelle "Grundbuch".
A16: 2. Buchen Sie die Geschäftsvorfälle
A17: entweder durch Direkteingabe in die entsprechenden Felder des Grundbuchs (Kontennummern und Beträge)
A18: oder durch Aufruf von Buchungsfenstern. (Klicken Sie dazu jeweils auf die Schaltfläche "Buchung" und beenden
A19: Sie die Eingabe mit "OK".)
A20: Die Kontennummern sind vierstellig anzugeben. (siehe Kontenplan). Bei zusammengesetzten Buchungssätzen
A21: sind die Buchungen nach der Höhe der Beträge geordnet vorzunehmen.
A23: 3. Sie können sich den Kontenplan mit Kontennummern jederzeit durch Klick auf den
A24: entsprechenden Button anzeigen lassen.
A26: 4. Die Richtigkeit Ihrer Buchungen wird bestätigt oder Sie werden auf
A27: Fehler hingewiesen. (Ohne Buchung werden Fehler angezeigt.)
A29: Buchen in Hauptbuch, GuV und Schlussbilanz
A30: 1. Navigation
A31: Sie können über die Blattregisterkarten die Tabellen Grundbuch, Hauptbuch, GuV und Bilanzbuch ansteuern.
A32: Einen direkten Zugriff auf die jeweils benötigen Konten haben Sie über die folgenden Schalter:
B33: Hauptbuchkonten | E33: Grundbuch | G33: Nachlässe (Rohstoffe)
B34: Gewinn und Verlust | E34: Schlussbilanz | G34: Rohstoffe
B35: Bestandsveränderungen | E35: Umsatzsteuer | G35: Erlösberichtigungen
B36: Vorsteuer | E36: Unfertige Erzeugnisse | G36: Umsatzerlöse
B37: Fertige Erzeugnisse | E37: Bezugskosten (Rohst.)
A38: Über diese Schalter können Sie aus dem Grundbuch heraus das für die jeweilige Buchung benötigte Konto
A39: direkt aufrufen. Dieses Konto wird dann jeweils mit einem X markiert.
A41: 2. Buchungen
A42: Die Systematik wird Ihnen an einem Screenshot das Kontos Forderungen gezeigt.
A44: lfd. Nummern | E44: lfd. Nummern | G44: Navigation
E54: Beträge
B56: Kontenanruf (in jeder Zelle steht eine Kontonummer) | G56: Abschlussmeldung
B58: Eröffnungsbuchungen (bereits gebucht) | F58: A = Abschlussbuchung
B59: laufende Buchungen | F59: AB = Anfangsbestand
B60: Abschlussbuchungen und Berechnungen | F60: SB = Schlussbestand
A62: 3. Abschluss
A63: Die Konten sind unter fogenden Bedingungen richtig abgeschlossen.
A64: - Die Nummern der Gegenkonten werden gemäß den Grundsätzen ordnungsgemäßer Buchführung geordnet,
A65: in die dafür vorgesehenen Zellen eingetragen. Die Reihenfolge der Eintragungen muss mit dem Grundbuch
A66: übereinstimmen.
A67: - Die Beträge sind richtig eingetragen.
A68: - Die Abschlussberechnungen sind korrekt.

Sheet Grundbuch
A2: Geschäftsvorfälle
A3: Grundbuch
G4: 0.19
A6: 1. | B6: Die Tropic GmbH kauft Bauwollstoff bei der Baumwollweberei Kaiser OHG auf Ziel, | D6: netto | E6: 44000 | F6: =IF(AND(B10="2000",B11="2600",E10="4400"),"Die Konten sind richtig!","Mindestens ein Konto ist falsch!") -> Mindestens ein Konto ist falsch!
A7: Geschäftsvorfall | D7: USt. | E7: =E6*$G$4 -> 8360 | F7: =IF(AND(D10=E6,D11=E7,G10=E8),"Die Beträge sind richtig!","Mindestens ein Betrag ist falsch!") -> Mindestens ein Betrag ist falsch!
D8: brutto | E8: =SUM(E6:E7) -> 52360 | F8: =IF(AND(F6="Die Konten sind richtig!",F7="Die Beträge sind richtig!"),"Alles richtig!","Es sind noch Fehler vorhanden!") -> Es sind noch Fehler vorhanden!
B9: Soll | C9: Konto | D9: € | E9: Haben | F9: Konto | G9: €
A10: Buchungssatz | C10: =IF(B10="","",VLOOKUP(B10,Kontenplan!$A$4:$B$34,2)) ->  | F10: =IF(E10="","",VLOOKUP(E10,Kontenplan!$A$4:$B$34,2)) -> 
C11: =IF(B11="","",VLOOKUP(B11,Kontenplan!$A$4:$B$34,2)) -> 
A13: 2. | B13: Barzahlung von Bezugskosten für die Lieferung von Baumwollstoffen aus Geschäftsvorfall 1., | D13: netto | E13: 1200 | F13: =IF(AND(B17="2001",B18="2600",E17="2880"),"Die Konten sind richtig!","Mindestens ein Konto ist falsch!") -> Mindestens ein Konto ist falsch!
A14: Geschäftsvorfall | D14: USt. | E14: =E13*$G$4 -> 228 | F14: =IF(AND(D17=E13,D18=E14,G17=E15),"Die Beträge sind richtig!","Mindestens ein Betrag ist falsch!") -> Mindestens ein Betrag ist falsch!
D15: brutto | E15: =SUM(E13:E14) -> 1428 | F15: =IF(AND(F13="Die Konten sind richtig!",F14="Die Beträge sind richtig!"),"Alles richtig!","Es sind noch Fehler vorhanden!") -> Es sind noch Fehler vorhanden!
B16: Soll | C16: Konto | D16: € | E16: Haben | F16: Konto | G16: €
A17: Buchungssatz | C17: =IF(B17="","",VLOOKUP(B17,Kontenplan!$A$4:$B$34,2)) ->  | F17: =IF(E17="","",VLOOKUP(E17,Kontenplan!$A$4:$B$34,2)) -> 
C18: =IF(B18="","",VLOOKUP(B18,Kontenplan!$A$4:$B$34,2)) -> 
A20: 3. | B20: Die Boutique Simone Sommer begleicht eine Ausgangsrechnung abzüglich 2% Skonto durch Banküberweisung. | D20: Gutschrift | E20: =E23-E22-E21 -> 58310 | F20: =IF(AND(B25="2800",B26="5001",B27="4800",E25="2400"),"Die Konten sind richtig!","Mindestens ein Konto ist falsch!") -> Mindestens ein Konto ist falsch!
D21: Skonto | E21: =ROUND((E23*2%)-(E23*2%*($G$4*100))/(100+($G$4*100)),2) -> 1000
A22: Geschäftsvorfall | D22: USt. | E22: =ROUND(E21*$G$4,2) -> 190 | F22: =IF(AND(D25=E20,D26=E21,D27=E22,G25=E23),"Die Beträge sind richtig!","Mindestens ein Betrag ist falsch!") -> Mindestens ein Betrag ist falsch!
D23: Bruttobetrag | E23: 59500 | F23: =IF(AND(F20="Die Konten sind richtig!",F22="Die Beträge sind richtig!"),"Alles richtig!","Es sind noch Fehler vorhanden!") -> Es sind noch Fehler vorhanden!
B24: Soll | C24: Konto | D24: € | E24: Haben | F24: Konto | G24: €
A25: Buchungssatz | C25: =IF(B25="","",VLOOKUP(B25,Kontenplan!$A$4:$B$34,2)) ->  | F25: =IF(E25="","",VLOOKUP(E25,Kontenplan!$A$4:$B$34,2)) -> 
C26: =IF(B26="","",VLOOKUP(B26,Kontenplan!$A$4:$B$34,2)) -> 
C27: =IF(B27="","",VLOOKUP(B27,Kontenplan!$A$4:$B$34,2)) -> 
A29: 4. | B29: Einkauf von Hilfsstoffen auf Ziel bei der Faden GmbH, | D29: netto | E29: 4500 | F29: =IF(AND(B33="2020",B34="2600",E33="4400"),"Die Konten sind richtig!","Mindestens ein Konto ist falsch!") -> Mindestens ein Konto ist falsch!
A30: Geschäftsvorfall | D30: USt. | E30: =E29*$G$4 -> 855 | F30: =IF(AND(D33=E29,D34=E30,G33=E31),"Die Beträge sind richtig!","Mindestens ein Betrag ist falsch!") -> Mindestens ein Betrag ist falsch!
D31: brutto | E31: =SUM(E29:E30) -> 5355 | F31: =IF(AND(F29="Die Konten sind richtig!",F30="Die Beträge sind richtig!"),"Alles richtig!","Es sind noch Fehler vorhanden!") -> Es sind noch Fehler vorhanden!
B32: Soll | C32: Konto | D32: € | E32: Haben | F32: Konto | G32: €
A33: Buchungssatz | C33: =IF(B33="","",VLOOKUP(B33,Kontenplan!$A$4:$B$34,2)) ->  | F33: =IF(E33="","",VLOOKUP(E33,Kontenplan!$A$4:$B$34,2)) -> 
C34: =IF(B34="","",VLOOKUP(B34,Kontenplan!$A$4:$B$34,2)) -> 
A36: 5. | B36: Rücksendung beschädigter Hilfsstoffe aus Geschäftsvorfall 4. an die Faden GmbH, | D36: netto | E36: 2400 | F36: =IF(AND(B40="4400",E40="2020",E41="2600"),"Die Konten sind richtig!","Mindestens ein Konto ist falsch!") -> Mindestens ein Konto ist falsch!
A37: Geschäftsvorfall | D37: USt. | E37: =E36*$G$4 -> 456 | F37: =IF(AND(D40=E38,G40=E36,G41=E37),"Die Beträge sind richtig!","Mindestens ein Betrag ist falsch!") -> Mindestens ein Betrag ist falsch!
D38: brutto | E38: =SUM(E36:E37) -> 2856 | F38: =IF(AND(F36="Die Konten sind richtig!",F37="Die Beträge sind richtig!"),"Alles richtig!","Es sind noch Fehler vorhanden!") -> Es sind noch Fehler vorhanden!
B39: Soll | C39: Konto | D39: € | E39: Haben | F39: Konto | G39: €
A40: Buchungssatz | C40: =IF(B40="","",VLOOKUP(B40,Kontenplan!$A$4:$B$34,2)) ->  | F40: =IF(E40="","",VLOOKUP(E40,Kontenplan!$A$4:$B$34,2)) -> 
F41: =IF(E41="","",VLOOKUP(E41,Kontenplan!$A$4:$B$34,2)) -> 
A43: 6. | B43: Bonusgewährung an den Kunden Paolo Russo Jeans, | D43: netto | E43: 350 | F43: =IF(AND(B47="5001",B48="4800",E47="2400"),"Die Konten sind richtig!","Mindestens ein Konto ist falsch!") -> Mindestens ein Konto ist falsch!
A44: Geschäftsvorfall | D44: USt. | E44: =ROUND(E43*$G$4,2) -> 66.5 | F44: =IF(AND(D47=E43,D48=E44,G47=E45),"Die Beträge sind richtig!","Mindestens ein Betrag ist falsch!") -> Mindestens ein Betrag ist falsch!
D45: brutto | E45: =SUM(E43:E44) -> 416.5 | F45: =IF(AND(F43="Die Konten sind richtig!",F44="Die Beträge sind richtig!"),"Alles richtig!","Es sind noch Fehler vorhanden!") -> Es sind noch Fehler vorhanden!
B46: Soll | C46: Konto | D46: € | E46: Haben | F46: Konto | G46: €
A47: Buchungssatz | C47: =IF(B47="","",VLOOKUP(B47,Kontenplan!$A$4:$B$34,2)) ->  | F47: =IF(E47="","",VLOOKUP(E47,Kontenplan!$A$4:$B$34,2)) -> 
C48: =IF(B48="","",VLOOKUP(B48,Kontenplan!$A$4:$B$34,2)) -> 
A50: 7. | B50: Einkauf von Hilfsstoffen im Verkaufslager der ZIP GmbH und sofortige Barzahlung, | D50: netto | E50: 900 | F50: =IF(AND(B54="2020",B55="2600",E54="2880"),"Die Konten sind richtig!","Mindestens ein Konto ist falsch!") -> Mindestens ein Konto ist falsch!
A51: Geschäftsvorfall | D51: USt. | E51: =E50*$G$4 -> 171 | F51: =IF(AND(D54=E50,D55=E51,G54=E52),"Die Beträge sind richtig!","Mindestens ein Betrag ist falsch!") -> Mindestens ein Betrag ist falsch!
D52: brutto | E52: =SUM(E50:E51) -> 1071 | F52: =IF(AND(F50="Die Konten sind richtig!",F51="Die Beträge sind richtig!"),"Alles richtig!","Es sind noch Fehler vorhanden!") -> Es sind noch Fehler vorhanden!
B53: Soll | C53: Konto | D53: € | E53: Haben | F53: Konto | G53: €
A54: Buchungssatz | C54: =IF(B54="","",VLOOKUP(B54,Kontenplan!$A$4:$B$34,2)) ->  | F54: =IF(E54="","",VLOOKUP(E54,Kontenplan!$A$4:$B$34,2)) -> 
C55: =IF(B55="","",VLOOKUP(B55,Kontenplan!$A$4:$B$34,2)) -> 
A57: 8. | B57: Gutschrift der Cotton GmbH & Co KG für einen Preisnachlass aufgrund eines Mangels an gelieferten Stoffen, | D57: netto | E57: 1400 | F57: =IF(AND(B61="4400",E61="2002",E62="2600"),"Die Konten sind richtig!","Mindestens ein Konto ist falsch!") -> Mindestens ein Konto ist falsch!
A58: Geschäftsvorfall | D58: USt. | E58: =E57*$G$4 -> 266 | F58: =IF(AND(D61=E59,G61=E57,G62=E58),"Die Beträge sind richtig!","Mindestens ein Betrag ist falsch!") -> Mindestens ein Betrag ist falsch!
D59: brutto | E59: =SUM(E57:E58) -> 1666 | F59: =IF(AND(F57="Die Konten sind richtig!",F58="Die Beträge sind richtig!"),"Alles richtig!","Es sind noch Fehler vorhanden!") -> Es sind noch Fehler vorhanden!
B60: Soll | C60: Konto | D60: € | E60: Haben | F60: Konto | G60: €
A61: Buchungssatz | C61: =IF(B61="","",VLOOKUP(B61,Kontenplan!$A$4:$B$34,2)) ->  | F61: =IF(E61="","",VLOOKUP(E61,Kontenplan!$A$4:$B$34,2)) -> 
F62: =IF(E62="","",VLOOKUP(E62,Kontenplan!$A$4:$B$34,2)) -> 
A64: 9. | B64: Barzahlung der Ausgangsfracht für eine Lieferung an die Schickeria Moden GmbH | D64: netto | E64: 550 | F64: =IF(AND(B68="6140",B69="2600",E68="2880"),"Die Konten sind richtig!","Mindestens ein Konto ist falsch!") -> Mindestens ein Konto ist falsch!
A65: Geschäftsvorfall | D65: USt. | E65: =ROUND(E64*$G$4,2) -> 104.5 | F65: =IF(AND(D68=E64,D69=E65,G68=E66),"Die Beträge sind richtig!","Mindestens ein Betrag ist falsch!") -> Mindestens ein Betrag ist falsch!
D66: brutto | E66: =SUM(E64:E65) -> 654.5 | F66: =IF(AND(F64="Die Konten sind richtig!",F65="Die Beträge sind richtig!"),"Alles richtig!","Es sind noch Fehler vorhanden!") -> Es sind noch Fehler vorhanden!
B67: Soll | C67: Konto | D67: € | E67: Haben | F67: Konto | G67: €
A68: Buchungssatz | C68: =IF(B68="","",VLOOKUP(B68,Kontenplan!$A$4:$B$34,2)) ->  | F68: =IF(E68="","",VLOOKUP(E68,Kontenplan!$A$4:$B$34,2)) ->  | G68: 654.5
C69: =IF(B69="","",VLOOKUP(B69,Kontenplan!$A$4:$B$34,2)) -> 
A71: 10. | B71: Banküberweisung an die Weberei Holzmann KG für den Bezug von Rohstoffen unter Abzug von 2% Skonto, | D71: Lastschrift | E71: =E74-E73-E72 -> 29155 | F71: =IF(AND(B76="4400",E76="2800",E77="2002",E78="2600"),"Die Konten sind richtig!","Mindestens ein Konto ist falsch!") -> Mindestens ein Konto ist falsch!
D72: Skonto | E72: =ROUND((E74*2%)-(E74*2%*($G$4*100))/(100+($G$4*100)),2) -> 500
A73: Geschäftsvorfall | D73: USt. | E73: =ROUND(E72*$G$4,2) -> 95 | F73: =IF(AND(D76=E74,E74,G76=E71,G77=E72,G78=E73),"Die Beträge sind richtig!","Mindestens ein Betrag ist falsch!") -> Mindestens ein Betrag ist falsch!
D74: Bruttobetrag | E74: 29750 | F74: =IF(AND(F71="Die Konten sind richtig!",F73="Die Beträge sind richtig!"),"Alles richtig!","Es sind noch Fehler vorhanden!") -> Es sind noch Fehler vorhanden!
B75: Soll | C75: Konto | D75: € | E75: Haben | F75: Konto | G75: €
A76: Buchungssatz | C76: =IF(B76="","",VLOOKUP(B76,Kontenplan!$A$4:$B$34,2)) ->  | F76: =IF(E76="","",VLOOKUP(E76,Kontenplan!$A$4:$B$34,2)) -> 
F77: =IF(E77="","",VLOOKUP(E77,Kontenplan!$A$4:$B$34,2)) -> 
F78: =IF(E78="","",VLOOKUP(E78,Kontenplan!$A$4:$B$34,2)) -> 
A80: 11. | B80: Verkauf von fertigen Erzeugnissen auf Ziel an die Route 66 GmbH, | D80: netto | E80: 80000 | F80: =IF(AND(B84="2400",E84="5000",E85="4800"),"Die Konten sind richtig!","Mindestens ein Konto ist falsch!") -> Mindestens ein Konto ist falsch!
A81: Geschäftsvorfall | D81: USt. | E81: =E80*$G$4 -> 15200 | F81: =IF(AND(D84=E82,G84=E80,G85=E81),"Die Beträge sind richtig!","Mindestens ein Betrag ist falsch!") -> Mindestens ein Betrag ist falsch!
D82: brutto | E82: =SUM(E80:E81) -> 95200 | F82: =IF(AND(F80="Die Konten sind richtig!",F81="Die Beträge sind richtig!"),"Alles richtig!","Es sind noch Fehler vorhanden!") -> Es sind noch Fehler vorhanden!
B83: Soll | C83: Konto | D83: € | E83: Haben | F83: Konto | G83: €
A84: Buchungssatz | C84: =IF(B84="","",VLOOKUP(B84,Kontenplan!$A$4:$B$34,2)) ->  | F84: =IF(E84="","",VLOOKUP(E84,Kontenplan!$A$4:$B$34,2)) -> 
F85: =IF(E85="","",VLOOKUP(E85,Kontenplan!$A$4:$B$34,2)) -> 
A87: 12. | B87: Wir zahlen Fracht für den Verkauf von fertigen Erzeugnissen aus Geschäftsvorfall 11 bar, | D87: netto | E87: 1200 | F87: =IF(AND(B91="6140",B92="2600",E91="2880"),"Die Konten sind richtig!","Mindestens ein Konto ist falsch!") -> Mindestens ein Konto ist falsch!
A88: Geschäftsvorfall | D88: USt. | E88: =E87*$G$4 -> 228 | F88: =IF(AND(D91=E87,D92=E88,G91=E89),"Die Beträge sind richtig!","Mindestens ein Betrag ist falsch!") -> Mindestens ein Betrag ist falsch!
D89: brutto | E89: =SUM(E87:E88) -> 1428 | F89: =IF(AND(F87="Die Konten sind richtig!",F88="Die Beträge sind richtig!"),"Alles richtig!","Es sind noch Fehler vorhanden!") -> Es sind noch Fehler vorhanden!
B90: Soll | C90: Konto | D90: € | E90: Haben | F90: Konto | G90: €
A91: Buchungssatz | C91: =IF(B91="","",VLOOKUP(B91,Kontenplan!$A$4:$B$34,2)) ->  | F91: =IF(E91="","",VLOOKUP(E91,Kontenplan!$A$4:$B$34,2)) -> 
C92: =IF(B92="","",VLOOKUP(B92,Kontenplan!$A$4:$B$34,2)) -> 
A94: 13. | B94: Barverkauf an Marinas Collection GmbH, | D94: netto | E94: 2800 | F94: =IF(AND(B98="2880",E98="5000",E99="4800"),"Die Konten sind richtig!","Mindestens ein Konto ist falsch!") -> Mindestens ein Konto ist falsch!
A95: Geschäftsvorfall | D95: USt. | E95: =E94*$G$4 -> 532 | F95: =IF(AND(D98=E96,G98=E94,G99=E95),"Die Beträge sind richtig!","Mindestens ein Betrag ist falsch!") -> Mindestens ein Betrag ist falsch!
D96: brutto | E96: =SUM(E94:E95) -> 3332 | F96: =IF(AND(F94="Die Konten sind richtig!",F95="Die Beträge sind richtig!"),"Alles richtig!","Es sind noch Fehler vorhanden!") -> Es sind noch Fehler vorhanden!
B97: Soll | C97: Konto | D97: € | E97: Haben | F97: Konto | G97: €
A98: Buchungssatz | C98: =IF(B98="","",VLOOKUP(B98,Kontenplan!$A$4:$B$34,2)) ->  | F98: =IF(E98="","",VLOOKUP(E98,Kontenplan!$A$4:$B$34,2)) -> 
F99: =IF(E99="","",VLOOKUP(E99,Kontenplan!$A$4:$B$34,2)) -> 
A101: 14. | B101: Einkauf von Jeansstoffen bei der Bauwollweberei Kaiser OHG auf Ziel, | D101: netto | E101: 15000 | F101: =IF(AND(B105="2000",B106="2600",E105="4400"),"Die Konten sind richtig!","Mindestens ein Konto ist falsch!") -> Mindestens ein Konto ist falsch!
A102: Geschäftsvorfall | D102: USt. | E102: =E101*$G$4 -> 2850 | F102: =IF(AND(D105=E101,D106=E102,G105=E103),"Die Beträge sind richtig!","Mindestens ein Betrag ist falsch!") -> Mindestens ein Betrag ist falsch!
D103: brutto | E103: =SUM(E101:E102) -> 17850 | F103: =IF(AND(F101="Die Konten sind richtig!",F102="Die Beträge sind richtig!"),"Alles richtig!","Es sind noch Fehler vorhanden!") -> Es sind noch Fehler vorhanden!
B104: Soll | C104: Konto | D104: € | E104: Haben | F104: Konto | G104: €
A105: Buchungssatz | C105: =IF(B105="","",VLOOKUP(B105,Kontenplan!$A$4:$B$34,2)) ->  | F105: =IF(E105="","",VLOOKUP(E105,Kontenplan!$A$4:$B$34,2)) -> 
C106: =IF(B106="","",VLOOKUP(B106,Kontenplan!$A$4:$B$34,2)) -> 
A108: 15. | B108: Banküberweisung an die Baumwollweberei Kaiser OHG für den Stoffeinkauf aus Geschäftsvorfall 14 unter Abzug von 2% Skonto, | D108: Lastschrift | E108: =E111-E110-E109 -> 17493 | F108: =IF(AND(B113="4400",E113="2800",E114="2002",E115="2600"),"Die Konten sind richtig!","Mindestens ein Konto ist falsch!") -> Mindestens ein Konto ist falsch!
D109: Skonto | E109: =ROUND((E111*2%)-(E111*2%*($G$4*100))/(100+($G$4*100)),2) -> 300
A110: Geschäftsvorfall | D110: USt. | E110: =ROUND(E109*$G$4,2) -> 57 | F110: =IF(AND(D113=E111,E111,G113=E108,G114=E109,G115=E110),"Die Beträge sind richtig!","Mindestens ein Betrag ist falsch!") -> Mindestens ein Betrag ist falsch!
D111: Bruttobetrag | E111: =E103 -> 17850 | F111: =IF(AND(F108="Die Konten sind richtig!",F110="Die Beträge sind richtig!"),"Alles richtig!","Es sind noch Fehler vorhanden!") -> Es sind noch Fehler vorhanden!
B112: Soll | C112: Konto | D112: € | E112: Haben | F112: Konto | G112: €
A113: Buchungssatz | C113: =IF(B113="","",VLOOKUP(B113,Kontenplan!$A$4:$B$34,2)) ->  | F113: =IF(E113="","",VLOOKUP(E113,Kontenplan!$A$4:$B$34,2)) -> 
F114: =IF(E114="","",VLOOKUP(E114,Kontenplan!$A$4:$B$34,2)) -> 
F115: =IF(E115="","",VLOOKUP(E115,Kontenplan!$A$4:$B$34,2)) -> 
A117: 16. | B117: Rücksendung von Trainingsanzügen durch die Black and Blue Jeans GmbH, | D117: netto | E117: 4500 | F117: =IF(AND(B121="5000",B122="4800",E121="2400"),"Die Konten sind richtig!","Mindestens ein Konto ist falsch!") -> Mindestens ein Konto ist falsch!
A118: Geschäftsvorfall | D118: USt. | E118: =E117*$G$4 -> 855 | F118: =IF(AND(D121=E117,D122=E118,G121=E119),"Die Beträge sind richtig!","Mindestens ein Betrag ist falsch!") -> Mindestens ein Betrag ist falsch!
D119: brutto | E119: =SUM(E117:E118) -> 5355 | F119: =IF(AND(F117="Die Konten sind richtig!",F118="Die Beträge sind richtig!"),"Alles richtig!","Es sind noch Fehler vorhanden!") -> Es sind noch Fehler vorhanden!
B120: Soll | C120: Konto | D120: € | E120: Haben | F120: Konto | G120: €
A121: Buchungssatz | C121: =IF(B121="","",VLOOKUP(B121,Kontenplan!$A$4:$B$34,2)) ->  | F121: =IF(E121="","",VLOOKUP(E121,Kontenplan!$A$4:$B$34,2)) -> 
C122: =IF(B122="","",VLOOKUP(B122,Kontenplan!$A$4:$B$34,2)) -> 
A124: 17. | B124: Rücksendung von mangelhaften Microfaserstoffen an die Meersdonk OHG, | D124: netto | E124: 6600 | F124: =IF(AND(B128="4400",E128="2000",E129="2600"),"Die Konten sind richtig!","Mindestens ein Konto ist falsch!") -> Mindestens ein Konto ist falsch!
A125: Geschäftsvorfall | D125: USt. | E125: =E124*$G$4 -> 1254 | F125: =IF(AND(D128=E126,G128=E124,G129=E125),"Die Beträge sind richtig!","Mindestens ein Betrag ist falsch!") -> Mindestens ein Betrag ist falsch!
D126: brutto | E126: =SUM(E124:E125) -> 7854 | F126: =IF(AND(F124="Die Konten sind richtig!",F125="Die Beträge sind richtig!"),"Alles richtig!","Es sind noch Fehler vorhanden!") -> Es sind noch Fehler vorhanden!
B127: Soll | C127: Konto | D127: € | E127: Haben | F127: Konto | G127: €
A128: Buchungssatz | C128: =IF(B128="","",VLOOKUP(B128,Kontenplan!$A$4:$B$34,2)) ->  | F128: =IF(E128="","",VLOOKUP(E128,Kontenplan!$A$4:$B$34,2)) -> 
F129: =IF(E129="","",VLOOKUP(E129,Kontenplan!$A$4:$B$34,2)) -> 
A131: 18. | B131: Verkauf von Badehosen, Badeanzügen und Bikinis an die Kick Moden GmbH | D131: netto | E131: 38000 | F131: =IF(AND(B135="2400",E135="5000",E136="4800"),"Die Konten sind richtig!","Mindestens ein Konto ist falsch!") -> Mindestens ein Konto ist falsch!
A132: Geschäftsvorfall | D132: USt. | E132: =E131*$G$4 -> 7220 | F132: =IF(AND(D135=E133,G135=E131,G136=E132),"Die Beträge sind richtig!","Mindestens ein Betrag ist falsch!") -> Mindestens ein Betrag ist falsch!
D133: brutto | E133: =SUM(E131:E132) -> 45220 | F133: =IF(AND(F131="Die Konten sind richtig!",F132="Die Beträge sind richtig!"),"Alles richtig!","Es sind noch Fehler vorhanden!") -> Es sind noch Fehler vorhanden!
B134: Soll | C134: Konto | D134: € | E134: Haben | F134: Konto | G134: €
A135: Buchungssatz | C135: =IF(B135="","",VLOOKUP(B135,Kontenplan!$A$4:$B$34,2)) ->  | F135: =IF(E135="","",VLOOKUP(E135,Kontenplan!$A$4:$B$34,2)) -> 
F136: =IF(E136="","",VLOOKUP(E136,Kontenplan!$A$4:$B$34,2)) -> 
A138: 19. | B138: Banküberweisung der Fa. Jeans and Shirts unter Abzug von 3% Skonto | D138: Gutschrift | E138: =E141-E140-E139 -> 23086 | F138: =IF(AND(B143="2800",B144="5001",B145="4800",E143="2400"),"Die Konten sind richtig!","Mindestens ein Konto ist falsch!") -> Mindestens ein Konto ist falsch!
D139: Skonto | E139: =ROUND((E141*3%)-(E141*3%*($G$4*100))/(100+($G$4*100)),2) -> 600
A140: Geschäftsvorfall | D140: USt. | E140: =ROUND(E139*$G$4,2) -> 114 | F140: =IF(AND(D143=E138,D144=E139,D145=E140,G143=E141),"Die Beträge sind richtig!","Mindestens ein Betrag ist falsch!") -> Mindestens ein Betrag ist falsch!
D141: Bruttobetrag | E141: 23800 | F141: =IF(AND(F138="Die Konten sind richtig!",F140="Die Beträge sind richtig!"),"Alles richtig!","Es sind noch Fehler vorhanden!") -> Es sind noch Fehler vorhanden!
B142: Soll | C142: Konto | D142: € | E142: Haben | F142: Konto | G142: €
A143: Buchungssatz | C143: =IF(B143="","",VLOOKUP(B143,Kontenplan!$A$4:$B$34,2)) ->  | F143: =IF(E143="","",VLOOKUP(E143,Kontenplan!$A$4:$B$34,2)) -> 
C144: =IF(B144="","",VLOOKUP(B144,Kontenplan!$A$4:$B$34,2)) -> 
C145: =IF(B145="","",VLOOKUP(B145,Kontenplan!$A$4:$B$34,2)) -> 
A147: 20. | B147: Verbrauch lt. Materialentnahmescheine für | F147: =IF(AND(B152="6000",E152="2000",B153="6020",E153="2020",B154="6030",E154="2030"),"Die Konten sind richtig!","Mindestens ein Konto ist falsch!") -> Mindestens ein Konto ist falsch!
A148: Geschäftsvorfall | C148: - Rohstoffe | E148: 23000
C149: - Hilfsstoffe | E149: 9800 | F149: =IF(AND(D152=E148,D153=E149,D154=E150,G152=E148,G153=E149,G154=E150),"Die Beträge sind richtig!","Mindestens ein Betrag ist falsch!") -> Mindestens ein Betrag ist falsch!
C150: - Betriebsstoffe | E150: 1400 | F150: =IF(AND(F147="Die Konten sind richtig!",F149="Die Beträge sind richtig!"),"Alles richtig!","Es sind noch Fehler vorhanden!") -> Es sind noch Fehler vorhanden!
B151: Soll | C151: Konto | D151: € | E151: Haben | F151: Konto | G151: €
A152: Buchungssatz | C152: =IF(B152="","",VLOOKUP(B152,Kontenplan!$A$4:$B$34,2)) ->  | F152: =IF(E152="","",VLOOKUP(E152,Kontenplan!$A$4:$B$34,2)) -> 
C153: =IF(B153="","",VLOOKUP(B153,Kontenplan!$A$4:$B$34,2)) ->  | F153: =IF(E153="","",VLOOKUP(E153,Kontenplan!$A$4:$B$34,2)) -> 
C154: =IF(B154="","",VLOOKUP(B154,Kontenplan!$A$4:$B$34,2)) ->  | F154: =IF(E154="","",VLOOKUP(E154,Kontenplan!$A$4:$B$34,2)) -> 
A156: Abschlussangaben
A157: A1 | B157: Endbestände lt. Inventur | F157: =IF(AND(B161="8010",E161="2100",B162="8010",E162="2200"),"Die Konten sind richtig!","Mindestens ein Konto ist falsch!") -> Mindestens ein Konto ist falsch!
A158: Abschlussangabe | C158: - Unfertige Erzeugnisse | E158: 14800 | F158: =IF(AND(D161=E158,D162=E159,G161=E158,G162=E159),"Die Beträge sind richtig!","Mindestens ein Betrag ist falsch!") -> Mindestens ein Betrag ist falsch!
C159: - Fertige Erzeugnisse | E159: 47000 | F159: =IF(AND(F157="Die Konten sind richtig!",F158="Die Beträge sind richtig!"),"Alles richtig!","Es sind noch Fehler vorhanden!") -> Es sind noch Fehler vorhanden!
B160: Soll | C160: Konto | D160: € | E160: Haben | F160: Konto | G160: €
A161: Buchungssatz | C161: =IF(B161="","",VLOOKUP(B161,Kontenplan!$A$4:$B$34,2)) ->  | F161: =IF(E161="","",VLOOKUP(E161,Kontenplan!$A$4:$B$34,2)) -> 
C162: =IF(B162="","",VLOOKUP(B162,Kontenplan!$A$4:$B$34,2)) ->  | F162: =IF(E162="","",VLOOKUP(E162,Kontenplan!$A$4:$B$34,2)) -> 
A164: A2 | B164: Abschreibungen - Technische Anlagen und Maschinen | E164: 26000 | F164: =IF(AND(B168="6520",E168="0700",B169="6520",E169="0800",B170="6520",E170="0840"),"Die Konten sind richtig!","Mindestens ein Konto ist falsch!") -> Mindestens ein Konto ist falsch!
A165: Abschlussangabe | C165: - Betriebs- und Geschäftsaustattung | E165: 12400 | F165: =IF(AND(D168=E164,D169=E165,D170=E166,G168=E164,G169=E165,G170=E166),"Die Beträge sind richtig!","Mindestens ein Betrag ist falsch!") -> Mindestens ein Betrag ist falsch!
C166: - Fuhrpark | E166: 13000 | F166: =IF(AND(F164="Die Konten sind richtig!",F165="Die Beträge sind richtig!"),"Alles richtig!","Es sind noch Fehler vorhanden!") -> Es sind noch Fehler vorhanden!
B167: Soll | C167: Konto | D167: € | E167: Haben | F167: Konto | G167: €
A168: Buchungssatz | C168: =IF(B168="","",VLOOKUP(B168,Kontenplan!$A$4:$B$34,2)) ->  | F168: =IF(E168="","",VLOOKUP(E168,Kontenplan!$A$4:$B$34,2)) -> 
C169: =IF(B169="","",VLOOKUP(B169,Kontenplan!$A$4:$B$34,2)) ->  | F169: =IF(E169="","",VLOOKUP(E169,Kontenplan!$A$4:$B$34,2)) -> 
C170: =IF(B170="","",VLOOKUP(B170,Kontenplan!$A$4:$B$34,2)) ->  | F170: =IF(E170="","",VLOOKUP(E170,Kontenplan!$A$4:$B$34,2)) -> 
A172: =IF(AND(F8="Alles richtig!",F15="Alles richtig!",F23="Alles richtig!",F31="Alles richtig!",F38="Alles richtig!",F45="Alles richtig!",F52="Alles richtig!",F59="Alles richtig!",F66="Alles richtig!",F74="Alles richtig!",F82="Alles richtig!",F89="Alles richtig!",F96="Alles richtig!",F103="Alles richtig!",F111="Alles richtig!",F119="Alles richtig!",F126="Alles richtig!",F133="Alles richtig!",F141="Alles richtig!",F150="Alles richtig!",F159="Alles richtig!",F159="Alles richtig!",F166="Alles richtig!"),"Die Buchungen im Grundbuch sind richtig!","Das Grundbuch ist noch nicht vollständig!") -> Das Grundbuch ist noch nicht vollständig!

Sheet Hauptbuch
A1: Hauptbuch
A3: Soll | B3: 0500 Grundstücke und Bauten | J3: Haben
A4: Nr. | B4: Kontenanruf | E4: Euro | F4: Nr. | G4: Kontenanruf | J4: Euro | K4: =IF(L4="Kontenanrufe vollständig!",1,2) -> 2 | L4: =IF(G5=8010,"Kontenanrufe vollständig!","Kontenanrufe nicht vollständig!") -> Kontenanrufe nicht vollständig!
A5: AB | B5: 8000 | E5: =Bilanzbuch!C4 -> 1100000 | F5: SB | K5: =IF(L5="Saldo richtig!",1,2) -> 2 | L5: =IF(J5=1100000,"Saldo richtig!","Ermitteln Sie den richtigen Saldo!") -> Ermitteln Sie den richtigen Saldo!
A7: Soll | B7: 0700 Technische Anlagen und Maschinen | J7: Haben
A8: Nr. | B8: Kontenanruf | E8: Euro | F8: Nr. | G8: Kontenanruf | J8: Euro
A9: AB | B9: 8000 | E9: =Bilanzbuch!C5 -> 590000 | F9: A2
F10: SB | K10: =IF(L10="Kontenanrufe vollständig!",1,2) -> 2 | L10: =IF(AND(G9=6520,G10=8010),"Kontenanrufe vollständig!","Kontenanrufe nicht vollständig!") -> Kontenanrufe nicht vollständig!
K11: =IF(L11="Saldo richtig!",1,2) -> 2 | L11: =IF(J10=564000,"Saldo richtig!","Ermitteln Sie den richtigen Saldo!") -> Ermitteln Sie den richtigen Saldo!
A13: Soll | B13: 0800 Betriebs- und Geschäftsausstattung | J13: Haben
A14: Nr. | B14: Kontenanruf | E14: Euro | F14: Nr. | G14: Kontenanruf | J14: Euro
A15: AB | B15: 8000 | E15: =Bilanzbuch!C6 -> 115000 | F15: A2
F16: SB | K16: =IF(L16="Kontenanrufe vollständig!",1,2) -> 2 | L16: =IF(AND(G15=6520,G16=8010),"Kontenanrufe vollständig!","Kontenanrufe nicht vollständig!") -> Kontenanrufe nicht vollständig!
K17: =IF(L17="Saldo richtig!",1,2) -> 2 | L17: =IF(J16=102600,"Saldo richtig!","Ermitteln Sie den richtigen Saldo!") -> Ermitteln Sie den richtigen Saldo!
A19: Soll | B19: 0840 Fuhrpark | J19: Haben
A20: Nr. | B20: Kontenanruf | E20: Euro | F20: Nr. | G20: Kontenanruf | J20: Euro
A21: AB | B21: 8000 | E21: =Bilanzbuch!C7 -> 105000 | F21: A2
F22: SB | K22: =IF(L22="Kontenanrufe vollständig!",1,2) -> 2 | L22: =IF(AND(G21=6520,G22=8010),"Kontenanrufe vollständig!","Kontenanrufe nicht vollständig!") -> Kontenanrufe nicht vollständig!
K23: =IF(L23="Saldo richtig!",1,2) -> 2 | L23: =IF(J22=92000,"Saldo richtig!","Ermitteln Sie den richtigen Saldo!") -> Ermitteln Sie den richtigen Saldo!
A25: Soll | B25: 2000 Rohstoffe | J25: Haben
A26: Nr. | B26: Kontenanruf | E26: Euro | F26: Nr. | G26: Kontenanruf | J26: Euro
A27: AB | B27: 8000 | E27: =Bilanzbuch!C8 -> 90000 | F27: 17.
A28: 1. | F28: 20. | K28: =IF(L28="Kontenanrufe vollständig!",1,2) -> 2 | L28: =IF(AND(B28=4400,B29=4400,B30=2001,G27=4400,G28=6000,G29=2002,G30=8010),"Kontenanrufe vollständig!","Kontenanrufe nicht vollständig!") -> Kontenanrufe nicht vollständig!
A29: 14. | F29: A | K29: =IF(L29="Saldo richtig!",1,2) -> 2 | L29: =IF(J30=118400,"Saldo richtig!","Ermitteln Sie den richtigen Saldo!") -> Ermitteln Sie den richtigen Saldo!
A30: A | F30: SB
A33: Soll | B33: 2001 Bezugskosten (Rohstoffe) | J33: Haben
A34: Nr. | B34: Kontenanruf | E34: Euro | F34: Nr. | G34: Kontenanruf | J34: Euro
A35: 2. | F35: A | K35: =IF(L35="Kontenanrufe vollständig!",1,2) -> 2 | L35: =IF(AND(B35=2880,G35=2000),"Kontenanrufe vollständig!","Kontenanrufe nicht vollständig!") -> Kontenanrufe nicht vollständig!
K36: =IF(L36="Saldo richtig!",1,2) -> 2 | L36: =IF(J35=1200,"Saldo richtig!","Ermitteln Sie den richtigen Saldo!") -> Ermitteln Sie den richtigen Saldo!
A38: Soll | B38: 2002 Nachlässe (Rohstoffe) | J38: Haben
A39: Nr. | B39: Kontenanruf | E39: Euro | F39: Nr. | G39: Kontenanruf | J39: Euro
A40: A | F40: 8.
F41: 10. | K41: =IF(L41="Kontenanrufe vollständig!",1,2) -> 2 | L41: =IF(AND(B40=2000,G40=4400,G41=4400,G42=4400),"Kontenanrufe vollständig!","Kontenanrufe nicht vollständig!") -> Kontenanrufe nicht vollständig!
F42: 15. | K42: =IF(L42="Saldo richtig!",1,2) -> 2 | L42: =IF(E40=2200,"Saldo richtig!","Ermitteln Sie den richtigen Saldo!") -> Ermitteln Sie den richtigen Saldo!
A45: Soll | B45: 2020 Hilfsstoffe | J45: Haben
A46: Nr. | B46: Kontenanruf | E46: Euro | F46: Nr. | G46: Kontenanruf | J46: Euro
A47: AB | B47: 8000 | E47: =Bilanzbuch!C9 -> 16000 | F47: 5.
A48: 4. | F48: 20. | K48: =IF(L48="Kontenanrufe vollständig!",1,2) -> 2 | L48: =IF(AND(B48=4400,B49=2880,G47=4400,G48=6020,G49=8010),"Kontenanrufe vollständig!","Kontenanrufe nicht vollständig!") -> Kontenanrufe nicht vollständig!
A49: 7. | F49: SB | K49: =IF(L49="Saldo richtig!",1,2) -> 2 | L49: =IF(J49=9200,"Saldo richtig!","Ermitteln Sie den richtigen Saldo!") -> Ermitteln Sie den richtigen Saldo!
A52: Soll | B52: 2030 Betriebsstoffe | J52: Haben
A53: Nr. | B53: Kontenanruf | E53: Euro | F53: Nr. | G53: Kontenanruf | J53: Euro
A54: AB | B54: 8000 | E54: =Bilanzbuch!C10 -> 14000 | F54: 20.
F55: SB | K55: =IF(L55="Kontenanrufe vollständig!",1,2) -> 2 | L55: =IF(AND(G54=6030,G55=8010),"Kontenanrufe vollständig!","Kontenanrufe nicht vollständig!") -> Kontenanrufe nicht vollständig!
K56: =IF(L56="Saldo richtig!",1,2) -> 2 | L56: =IF(J55=12600,"Saldo richtig!","Ermitteln Sie den richtigen Saldo!") -> Ermitteln Sie den richtigen Saldo!
A58: Soll | B58: 2100 Unfertige Erzeugnisse | J58: Haben
A59: Nr. | B59: Kontenanruf | E59: Euro | F59: Nr. | G59: Kontenanruf | J59: Euro
A60: AB | B60: 8000 | E60: =Bilanzbuch!C11 -> 34000 | F60: A1
F61: A | K61: =IF(L61="Kontenanrufe vollständig!",1,2) -> 2 | L61: =IF(AND(G60=8010,G61=5200),"Kontenanrufe vollständig!","Kontenanrufe nicht vollständig!") -> Kontenanrufe nicht vollständig!
K62: =IF(L62="Saldo richtig!",1,2) -> 2 | L62: =IF(J61=19200,"Saldo richtig!","Ermitteln Sie den richtigen Saldo!") -> Ermitteln Sie den richtigen Saldo!
A64: Soll | B64: 2200 Fertige Erzeugnisse | J64: Haben
A65: Nr. | B65: Kontenanruf | E65: Euro | F65: Nr. | G65: Kontenanruf | J65: Euro
A66: AB | B66: 8000 | E66: =Bilanzbuch!C12 -> 45000 | F66: A1
A67: A | K67: =IF(L67="Kontenanrufe vollständig!",1,2) -> 2 | L67: =IF(AND(G66=8010,B67=5200),"Kontenanrufe vollständig!","Kontenanrufe nicht vollständig!") -> Kontenanrufe nicht vollständig!
K68: =IF(L68="Saldo richtig!",1,2) -> 2 | L68: =IF(E67=2000,"Saldo richtig!","Ermitteln Sie den richtigen Saldo!") -> Ermitteln Sie den richtigen Saldo!
A70: Soll | B70: 2400 Forderungen aus Lieferungen und Leistungen | J70: Haben
A71: Nr. | B71: Kontenanruf | E71: Euro | F71: Nr. | G71: Kontenanruf | J71: Euro
A72: AB | B72: 8000 | E72: =Bilanzbuch!C13 -> 75000 | F72: 3.
A73: 11. | F73: 6. | K73: =IF(L73="Kontenanrufe vollständig!",1,2) -> 2 | L73: =IF(AND(B73=5000,C73=4800,G72=2800,H72=5001,I72=4800,B73=5000,C73=4800,B74=5000,C74=4800,G73=5001,H73=4800,G74=5000,H74=4800,G75=2800,H75=5001,I75=4800,G76=8010),"Kontenanrufe vollständig!","Kontenanrufe nicht vollständig!") -> Kontenanrufe nicht vollständig!
A74: 18. | F74: 16. | K74: =IF(L74="Saldo richtig!",1,2) -> 2 | L74: =IF(J76=(E73+E74+E72-J72-J73-J74-J75),"Saldo richtig!","Ermitteln Sie den richtigen Saldo!") -> Ermitteln Sie den richtigen Saldo!
F75: 19.
F76: SB
A79: Soll | B79: 2600 Vorsteuer | J79: Haben
A80: Nr. | B80: Kontenanruf | E80: Euro | F80: Nr. | G80: Kontenanruf | J80: Euro
A81: 1. | F81: 5.
A82: 2. | F82: 8. | K82: =IF(L82="Kontenanrufe vollständig!",1,2) -> 2 | L82: =IF(AND(B81=4400,B82=2880,B83=4400,B84=2880,B85=2880,B86=2880,B87=4400,G81=4400,G82=4400,G83=4400,G84=4400,G85=4400,G86=4800),"Kontenanrufe vollständig!","Kontenanrufe nicht vollständig!") -> Kontenanrufe nicht vollständig!
A83: 4. | F83: 10. | K83: =IF(L83="Saldo richtig!",1,2) -> 2 | L83: =IF(AND(J86>0,J86=(E81+E82+E83+E84+E85+E86+E87-J81-J82-J83-J84-J85)),"Saldo richtig!","Ermitteln Sie den richtigen Saldo!") -> Ermitteln Sie den richtigen Saldo!
A84: 7. | F84: 15.
A85: 9. | F85: 17.
A86: 12. | F86: UST
A87: 14.
A90: Soll | B90: 2800 Kreditinstitute/Bank | J90: Haben
A91: Nr. | B91: Kontenanruf | E91: Euro | F91: Nr. | G91: Kontenanruf | J91: Euro
A92: AB | B92: 8000 | E92: =Bilanzbuch!C14 -> 85000 | F92: 10.
A93: 3. | F93: 15. | K93: =IF(L93="Kontenanrufe vollständig!",1,2) -> 2 | L93: =IF(AND(B93=2400,B94=2400,G92=4400,G93=4400,G94=8010),"Kontenanrufe vollständig!","Kontenanrufe nicht vollständig!") -> Kontenanrufe nicht vollständig!
A94: 19. | F94: SB | K94: =IF(L94="Saldo richtig!",1,2) -> 2 | L94: =IF(J94=(E92+E93+E94-J92-J93),"Saldo richtig!","Ermitteln Sie den richtigen Saldo!") -> Ermitteln Sie den richtigen Saldo!
A97: Soll | B97: 2880 Kasse | J97: Haben
A98: Nr. | B98: Kontenanruf | E98: Euro | F98: Nr. | G98: Kontenanruf | J98: Euro
A99: AB | B99: 8000 | E99: =Bilanzbuch!C15 -> 9300 | F99: 2.
A100: 13. | F100: 7. | K100: =IF(L100="Kontenanrufe vollständig!",1,2) -> 2 | L100: =IF(AND(B100=5000,C100=4800,G99=2001,H99=2600,G100=2020,H100=2600,G101=6140,H101=2600,G102=6140,H102=2600,G103=8010),"Kontenanrufe vollständig!","Kontenanrufe nicht vollständig!") -> Kontenanrufe nicht vollständig!
F101: 9. | K101: =IF(L101="Saldo richtig!",1,2) -> 2 | L101: =IF(J103=(E99+E100-J99-J100-J101-J102),"Saldo richtig!","Ermitteln Sie den richtigen Saldo!") -> Ermitteln Sie den richtigen Saldo!
F102: 12.
F103: SB
A106: Soll | B106: 3000 Eigenkapital | J106: Haben
A107: Nr. | B107: Kontenanruf | E107: Euro | F107: Nr. | G107: Kontenanruf | J107: Euro
A108: SB | F108: AB | G108: 8000 | J108: =Bilanzbuch!F4 -> 1008300
F109: GuV | K109: =IF(L109="Kontenanrufe vollständig!",1,2) -> 2 | L109: =IF(AND(G109=8020,B108=8010),"Kontenanrufe vollständig!","Kontenanrufe nicht vollständig!") -> Kontenanrufe nicht vollständig!
K110: =IF(L110="Saldo richtig!",1,2) -> 2 | L110: =IF(E108=1018100,"Saldo richtig!","Ermitteln Sie den richtigen Saldo!") -> Ermitteln Sie den richtigen Saldo!
A112: Soll | B112: 4200 Verbindlichkeiten gegenüber Kreditinstituten (Darlehen) | J112: Haben
A113: Nr. | B113: Kontenanruf | E113: Euro | F113: Nr. | G113: Kontenanruf | J113: Euro | K113: =IF(L113="Kontenanrufe vollständig!",1,2) -> 2 | L113: =IF(B114=8010,"Kontenanrufe vollständig!","Kontenanrufe nicht vollständig!") -> Kontenanrufe nicht vollständig!
A114: SB | F114: AB | G114: 8000 | J114: =Bilanzbuch!F5 -> 1200000 | K114: =IF(L114="Saldo richtig!",1,2) -> 2 | L114: =IF(E114=1200000,"Saldo richtig!","Ermitteln Sie den richtigen Saldo!") -> Ermitteln Sie den richtigen Saldo!
A116: Soll | B116: 4400 Verbindlichkeiten aus Lieferungen und Leistungen | J116: Haben
A117: Nr. | B117: Kontenanruf | E117: Euro | F117: Nr. | G117: Kontenanruf | J117: Euro
A118: 5. | F118: AB | G118: 8000 | J118: =Bilanzbuch!F6 -> 59000
A119: 8. | F119: 1. | K119: =IF(L119="Kontenanrufe vollständig!",1,2) -> 2 | L119: =IF(AND(B118=2020,C118=2600,B119=2002,C119=2600,B120=2800,C120=2002,D120=2600,B121=2800,C121=2002,D121=2600,B123=8010,G119=2000,H119=2600,G120=2020,H120=2600,G121=2000,H121=2600),"Kontenanrufe vollständig!","Kontenanrufe nicht vollständig!") -> Kontenanrufe nicht vollständig!
A120: 10. | F120: 4. | K120: =IF(L120="Saldo richtig!",1,2) -> 2 | L120: =IF(E123=(J118+J119+J120+J121-E118-E119-E120-E121-E122),"Saldo richtig!","Ermitteln Sie den richtigen Saldo!") -> Ermitteln Sie den richtigen Saldo!
A121: 15. | F121: 14.
A122: 17.
A123: SB
A126: Soll | B126: 4800 Umsatzsteuer | J126: Haben
A127: Nr. | B127: Kontenanruf | E127: Euro | F127: Nr. | G127: Kontenanruf | J127: Euro
A128: 3. | F128: AB | G128: 8000 | J128: =Bilanzbuch!F7 -> 11000
A129: 6. | F129: 11.
A130: 16. | F130: 13. | K130: =IF(L130="Kontenanrufe vollständig!",1,2) -> 2 | L130: =IF(AND(B128=2400,B129=2400,B130=2400,B131=2400,B132=2600,B133=8010,G129=2400,G130=2880,G131=2400),"Kontenanrufe vollständig!","Kontenanrufe nicht vollständig!") -> Kontenanrufe nicht vollständig!
A131: 19. | F131: 18. | K131: =IF(L131="Saldo richtig!",1,2) -> 2 | L131: =IF(E133=(J128+J129+J130+J131-E128-E129-E130-E131-E132),"Saldo richtig!","Ermitteln Sie den richtigen Saldo!") -> Ermitteln Sie den richtigen Saldo!
A132: VS
A133: SB
A136: Soll | B136: 5000 Umsatzerlöse | J136: Haben
A137: Nr. | B137: Kontenanruf | E137: Euro | F137: Nr. | G137: Kontenanruf | J137: Euro
A138: 16. | F138: 11.
A139: EB | F139: 13. | K139: =IF(L139="Kontenanrufe vollständig!",1,2) -> 2 | L139: =IF(AND(B138=2400,B139=5001,B140=8020,G138=2400,G139=2880,G140=2400),"Kontenanrufe vollständig!","Kontenanrufe nicht vollständig!") -> Kontenanrufe nicht vollständig!
A140: GuV | F140: 18. | K140: =IF(L140="Saldo richtig!",1,2) -> 2 | L140: =IF(E140=114350,"Saldo richtig!","Ermitteln Sie den richtigen Saldo!") -> Ermitteln Sie den richtigen Saldo!
A143: Soll | B143: 5001 Erlösberichtigungen | J143: Haben
A144: Nr. | B144: Kontenanruf | E144: Euro | F144: Nr. | G144: Kontenanruf | J144: Euro
A145: 3. | F145: UE
A146: 6. | K146: =IF(L146="Kontenanrufe vollständig!",1,2) -> 2 | L146: =IF(AND(B145=2400,B146=2400,B147=2400,G145=5000),"Kontenanrufe vollständig!","Kontenanrufe nicht vollständig!") -> Kontenanrufe nicht vollständig!
A147: 19. | K147: =IF(L147="Saldo richtig!",1,2) -> 2 | L147: =IF(J145=1950,"Saldo richtig!","Ermitteln Sie den richtigen Saldo!") -> Ermitteln Sie den richtigen Saldo!
A150: Soll | B150: 5200 Bestandsveränderunen | J150: Haben | K150: X
A151: Nr. | B151: Kontenanruf | E151: Euro | F151: Nr. | G151: Kontenanruf | J151: Euro
A152: A | F152: A
F153: GuV
K154: =IF(L154="Kontenanrufe vollständig!",1,2) -> 2 | L154: =IF(AND(B152=2100,G152=2200,G153=8020),"Kontenanrufe vollständig!","Kontenanrufe nicht vollständig!") -> Kontenanrufe nicht vollständig!
K155: =IF(L155="Saldo richtig!",1,2) -> 2 | L155: =IF(J153=17200,"Saldo richtig!","Ermitteln Sie den richtigen Saldo!") -> Ermitteln Sie den richtigen Saldo!
A157: Soll | B157: 6000 Aufwendungen für Rohstoffe | J157: Haben | K157: X
A158: Nr. | B158: Kontenanruf | E158: Euro | F158: Nr. | G158: Kontenanruf | J158: Euro
A159: 20. | F159: GuV
K160: =IF(L160="Kontenanrufe vollständig!",1,2) -> 2 | L160: =IF(AND(B159=2000,G159=8020),"Kontenanrufe vollständig!","Kontenanrufe nicht vollständig!") -> Kontenanrufe nicht vollständig!
K161: =IF(L161="Saldo richtig!",1,2) -> 2 | L161: =IF(J159=23000,"Saldo richtig!","Ermitteln Sie den richtigen Saldo!") -> Ermitteln Sie den richtigen Saldo!
A163: Soll | B163: 6020 Aufwendungen für Hilfsstoffe | J163: Haben
A164: Nr. | B164: Kontenanruf | E164: Euro | F164: Nr. | G164: Kontenanruf | J164: Euro
A165: 20. | F165: GuV
K166: =IF(L166="Kontenanrufe vollständig!",1,2) -> 2 | L166: =IF(AND(B165=2020,G165=8020),"Kontenanrufe vollständig!","Kontenanrufe nicht vollständig!") -> Kontenanrufe nicht vollständig!
K167: =IF(L167="Saldo richtig!",1,2) -> 2 | L167: =IF(J165=9800,"Saldo richtig!","Ermitteln Sie den richtigen Saldo!") -> Ermitteln Sie den richtigen Saldo!
A169: Soll | B169: 6030 Aufwendungen für Betriebsstoffe | J169: Haben
A170: Nr. | B170: Kontenanruf | E170: Euro | F170: Nr. | G170: Kontenanruf | J170: Euro
A171: 20. | F171: GuV
K172: =IF(L172="Kontenanrufe vollständig!",1,2) -> 2 | L172: =IF(AND(B171=2030,G171=8020),"Kontenanrufe vollständig!","Kontenanrufe nicht vollständig!") -> Kontenanrufe nicht vollständig!
K173: =IF(L173="Saldo richtig!",1,2) -> 2 | L173: =IF(J171=1400,"Saldo richtig!","Ermitteln Sie den richtigen Saldo!") -> Ermitteln Sie den richtigen Saldo!
A175: Soll | B175: 6140 Frachten und Femdlager | J175: Haben
A176: Nr. | B176: Kontenanruf | E176: Euro | F176: Nr. | G176: Kontenanruf | J176: Euro
A177: 9. | F177: GuV
A178: 12. | K178: =IF(L178="Kontenanrufe vollständig!",1,2) -> 2 | L178: =IF(AND(B177=2880,B178=2880,G177=8020),"Kontenanrufe vollständig!","Kontenanrufe nicht vollständig!") -> Kontenanrufe nicht vollständig!
K179: =IF(L179="Saldo richtig!",1,2) -> 2 | L179: =IF(J177=1750,"Saldo richtig!","Ermitteln Sie den richtigen Saldo!") -> Ermitteln Sie den richtigen Saldo!
A181: Soll | B181: 6520 Abschreibungen auf Sachanlagen | J181: Haben
A182: Nr. | B182: Kontenanruf | E182: Euro | F182: Nr. | G182: Kontenanruf | J182: Euro
A183: A2 | F183: GuV | G183: 8020
A184: A2 | K184: =IF(L184="Kontenanrufe vollständig!",1,2) -> 2 | L184: =IF(AND(B183="0700",B184="0800",B185="0840",G183=8020),"Kontenanrufe vollständig!","Kontenanrufe nicht vollständig!") -> Kontenanrufe nicht vollständig!
A185: A2 | K185: =IF(L185="Saldo richtig!",1,2) -> 2 | L185: =IF(J183=51400,"Saldo richtig!","Ermitteln Sie den richtigen Saldo!") -> Ermitteln Sie den richtigen Saldo!

Sheet GuV
A1: Gewinn- und Verlustrechnung
A3: Soll | B3: 8020 Gewinn und Verlust | F3: Haben | G3: X
A4: 5200 | B4: =VLOOKUP(A4,Kontenplan!$A$4:$B$34,2) -> Bestandsveränderungen | D4: 5000 | E4: =VLOOKUP(D4,Kontenplan!$A$4:$B$34,2) -> Umsatzerlöse | G4: =IF(H4="Sie haben den Gewinn richtig ermittelt!",1,2) -> 2 | H4: =IF(C10=9800,"Sie haben den Gewinn richtig ermittelt!","Sie haben noch Fehler!") -> Sie haben noch Fehler!
A5: 6000 | B5: Aufwendungen für Rohstoffe
A6: 6020 | B6: Aufwendungen für Hilfsstoffe
A7: 6030 | B7: Aufwendungen für Betriebsstoffe
A8: 6140 | B8: Frachten und Fremdlager
A9: 6520 | B9: Abschreibung auf Sachanlagen
A10: 3000 | B10: Eigenkapital
K132: X

Sheet Bilanzbuch
A1: Bilanzbuch
A3: Aktiva | B3: 8000 Eröffnungsbilanz | F3: Passiva
A4: 0500 | B4: =VLOOKUP(A4,Kontenplan!$A$4:$B$34,2) -> Grundstücke und Bauten | C4: 1100000 | D4: 3000 | E4: =VLOOKUP(D4,Kontenplan!$A$4:$B$34,2) -> Eigenkapital | F4: =F16-SUM(F5:F15) -> 1008300
A5: 0700 | B5: =VLOOKUP(A5,Kontenplan!$A$4:$B$34,2) -> Technische Anlagen und Maschinen | C5: 590000 | D5: 4200 | E5: Verbindlichkeiten g. Kreditinstitute | F5: 1200000
A6: 0800 | B6: =VLOOKUP(A6,Kontenplan!$A$4:$B$34,2) -> Beriebs- und Geschäftsausstattung | C6: 115000 | D6: 4400 | E6: =VLOOKUP(D6,Kontenplan!$A$4:$B$34,2) -> Verbindlichkeiten a.L.u.L. | F6: 59000
A7: 0840 | B7: Fuhrpark | C7: 105000 | D7: 4800 | E7: =VLOOKUP(D7,Kontenplan!$A$4:$B$34,2) -> Umsatzsteuer | F7: 11000
A8: 2000 | B8: =VLOOKUP(A8,Kontenplan!$A$4:$B$34,2) -> Rohstoffe | C8: 90000
A9: 2020 | B9: =VLOOKUP(A9,Kontenplan!$A$4:$B$34,2) -> Hilfsstoffe | C9: 16000
A10: 2030 | B10: =VLOOKUP(A10,Kontenplan!$A$4:$B$34,2) -> Betriebsstoffe | C10: 14000
A11: 2100 | B11: =VLOOKUP(A11,Kontenplan!$A$4:$B$34,2) -> Unfertige Erzeugnisse | C11: 34000
A12: 2200 | B12: =VLOOKUP(A12,Kontenplan!$A$4:$B$34,2) -> Fertige Erzeugnisse | C12: 45000
A13: 2400 | B13: =VLOOKUP(A13,Kontenplan!$A$4:$B$34,2) -> Forderungen a.L.u.L. | C13: 75000
A14: 2800 | B14: =VLOOKUP(A14,Kontenplan!$A$4:$B$34,2) -> Kreditinstitute/Bank | C14: 85000
A15: 2880 | B15: =VLOOKUP(A15,Kontenplan!$A$4:$B$34,2) -> Kasse | C15: 9300
C16: =SUM(C4:C15) -> 2278300 | F16: =C16 -> 2278300
A18: Aktiva | B18: 8010 Schlussbilanz | F18: Passiva | G18: X
A19: 0500 | B19: =VLOOKUP(A19,Kontenplan!$A$4:$B$34,2) -> Grundstücke und Bauten | D19: 3000 | E19: =VLOOKUP(D19,Kontenplan!$A$4:$B$34,2) -> Eigenkapital | G19: =IF(H19="Aktiva = Passiva",1,2) -> 1 | H19: =IF(C31-F31=0,"Aktiva = Passiva",IF(C31-F31>0,"Aktiva > Passiva","Aktiva < Passiva")) -> Aktiva = Passiva
A20: 0700 | B20: =VLOOKUP(A20,Kontenplan!$A$4:$B$34,2) -> Technische Anlagen und Maschinen | D20: 4200 | E20: Verbindlichkeiten g. Kreditinstituten | H20: =CONCATENATE("Differenz = ",$C$31-$F$31) -> Differenz = 0
A21: 0800 | B21: =VLOOKUP(A21,Kontenplan!$A$4:$B$34,2) -> Beriebs- und Geschäftsausstattung | D21: 4400 | E21: =VLOOKUP(D21,Kontenplan!$A$4:$B$34,2) -> Verbindlichkeiten a.L.u.L.
A22: 0840 | B22: Fuhrpark | D22: 4800 | E22: =VLOOKUP(D22,Kontenplan!$A$4:$B$34,2) -> Umsatzsteuer
A23: 2000 | B23: =VLOOKUP(A23,Kontenplan!$A$4:$B$34,2) -> Rohstoffe
A24: 2020 | B24: =VLOOKUP(A24,Kontenplan!$A$4:$B$34,2) -> Hilfsstoffe
A25: 2030 | B25: =VLOOKUP(A25,Kontenplan!$A$4:$B$34,2) -> Betriebsstoffe
A26: 2100 | B26: =VLOOKUP(A26,Kontenplan!$A$4:$B$34,2) -> Unfertige Erzeugnisse
A27: 2200 | B27: =VLOOKUP(A27,Kontenplan!$A$4:$B$34,2) -> Fertige Erzeugnisse
A28: 2400 | B28: =VLOOKUP(A28,Kontenplan!$A$4:$B$34,2) -> Forderungen a.L.u.L.
A29: 2800 | B29: =VLOOKUP(A29,Kontenplan!$A$4:$B$34,2) -> Kreditinstitute/Bank
A30: 2880 | B30: =VLOOKUP(A30,Kontenplan!$A$4:$B$34,2) -> Kasse

Sheet Kontenplan
B1: Kontenplan
A3: Nr. | B3: Konto
A4: 0500 | B4: Grundstücke und Bauten
A5: 0700 | B5: Technische Anlagen und Maschinen
A6: 0800 | B6: Beriebs- und Geschäftsausstattung
A7: 0840 | B7: Fuhrpark
A8: 2000 | B8: Rohstoffe
A9: 2001 | B9: Bezugskosten (Rohstoffe)
A10: 2002 | B10: Nachlässe (Rohstoffe)
A11: 2020 | B11: Hilfsstoffe
A12: 2030 | B12: Betriebsstoffe
A13: 2100 | B13: Unfertige Erzeugnisse
A14: 2200 | B14: Fertige Erzeugnisse
A15: 2400 | B15: Forderungen a.L.u.L.
A16: 2600 | B16: Vorsteuer
A17: 2800 | B17: Kreditinstitute/Bank
A18: 2880 | B18: Kasse
A19: 3000 | B19: Eigenkapital
A20: 4200 | B20: Verbindlichkeiten g. Kreditinstituten
A21: 4400 | B21: Verbindlichkeiten a.L.u.L.
A22: 4800 | B22: Umsatzsteuer
A23: 5000 | B23: Umsatzerlöse
A24: 5001 | B24: Erlösberichtigungen
A25: 5200 | B25: Bestandsveränderungen
A26: 6000 | B26: Aufwendungen für Rohstoffe
A27: 6020 | B27: Aufwendungen für Hilfsstoffe
A28: 6030 | B28: Aufwendungen für Betriebsstoffe
A29: 6140 | B29: Frachten und Fremdlager
A30: 6160 | B30: Fremdinstandhaltung
A31: 6520 | B31: Abschreibungen auf Sachanlagen
A32: 8000 | B32: Eröffnungsbilanz
A33: 8010 | B33: Schlussbilanz
A34: 8020 | B34: Gewinn und Verlust
